bitfinex/quotes_BTCUSD_20250826
["timestamp","ask_amount","ask_price","bid_price","bid_amount"]
[1756166400957,0.04143453,110370.0,110360.0,0.00598885]
[1756166401156,0.04994398,110370.0,110360.0,0.00598885]
[1756166401393,0.05277536,110370.0,110360.0,0.00598885]
[1756166401604,0.04426591,110370.0,110360.0,0.00598885]
[1756166401813,0.05277517,110370.0,110360.0,0.00598885]
[1756166402223,0.05277495,110370.0,110360.0,0.00598885]
[1756166402848,0.0616558,110370.0,110360.0,0.00395885]
[1756166403060,0.0616558,110370.0,110360.0,0.00598885]
[1756166403648,0.0616558,110370.0,110360.0,0.00078885]
[1756166403892,0.10852637,110370.0,110360.0,0.00078885]
[1756166404647,5.50170731,110370.0,110360.0,0.00580885]
[1756166404878,0.003868,110370.0,110360.0,0.00377885]
[1756166405102,0.003868,110370.0,110360.0,0.00078885]
[1756166405103,5.00557531,110370.0,110360.0,0.00078885]
[1756166405321,5.03761473,110370.0,110360.0,0.00078885]
[1756166405532,5.21882339,110370.0,110360.0,0.00078885]
[1756166406024,5.32314206,110370.0,110360.0,0.00078885]
[1756166406239,0.1986741,110360.0,110350.0,0.00087786]
[1756166406460,5.2050564,110360.0,110350.0,0.00087786]
[1756166406673,5.23242098,110360.0,110350.0,0.00087786]
[1756166406894,5.31011662,110360.0,110350.0,0.00087786]
[1756166407963,5.30373432,110360.0,110350.0,0.00087786]
[1756166408843,5.31791548,110360.0,110350.0,0.00087786]
[1756166409456,5.48201317,110360.0,110350.0,0.00087786]
[1756166410117,5.47563548,110360.0,110350.0,0.00087786]
[1756166410747,5.47567548,110360.0,110350.0,0.00087786]
[1756166411233,5.48205127,110360.0,110350.0,0.00087786]
[1756166412469,5.46787011,110360.0,110350.0,0.00087786]
[1756166412846,5.46887011,110360.0,110350.0,0.00087786]
[1756166413292,5.47250511,110360.0,110350.0,0.00087786]
[1756166413501,5.47242511,110360.0,110350.0,0.00087786]
[1756166413705,5.31474511,110360.0,110350.0,0.00087786]
[1756166413911,5.47342511,110360.0,110350.0,0.00087786]
[1756166414036,5.4734226,110360.0,110350.0,0.00087786]
[1756166414239,5.4724226,110360.0,110350.0,0.00087786]
[1756166414439,5.4734226,110360.0,110350.0,0.00087786]
[1756166415175,5.5734226,110360.0,110350.0,0.00087786]
[1756166415795,5.58760462,110360.0,110350.0,1e-08]
[1756166416186,5.65732462,110360.0,110350.0,1e-08]
[1756166416390,0.1812415,110350.0,110340.0,1e-08]
[1756166416572,5.42141904,110350.0,110340.0,1e-08]
[1756166416765,5.5947796,110350.0,110340.0,1e-08]
[1756166417171,5.59477822,110350.0,110340.0,1e-08]
[1756166417376,5.44477822,110350.0,110340.0,1e-08]
[1756166417641,5.59477822,110350.0,110340.0,1e-08]
[1756166417936,5.59577822,110350.0,110340.0,1e-08]
[1756166418162,0.19872337,110330.0,110320.0,0.0004]
[1756166418373,0.19872337,110330.0,110320.0,0.00044774]
[1756166418374,5.3948415,110330.0,110320.0,0.00044774]
[1756166418575,5.35684337,110330.0,110320.0,0.00044774]
[1756166418940,5.37466495,110330.0,110320.0,0.00044774]
[1756166419499,5.42604866,110330.0,110320.0,0.00044774]
[1756166420364,5.42603203,110330.0,110320.0,0.00044774]
[1756166420571,5.42603203,110330.0,110320.0,0.00444774]
[1756166420777,5.49145543,110330.0,110320.0,0.00444774]
[1756166420949,5.51689879,110330.0,110320.0,0.00044774]
[1756166421173,5.51689911,110330.0,110320.0,0.00044774]
[1756166421300,5.51689911,110330.0,110320.0,0.00144774]
[1756166423363,5.49993649,110330.0,110320.0,0.00144774]
[1756166423571,5.51787049,110330.0,110320.0,0.00044774]
[1756166423990,5.61787049,110330.0,110320.0,0.00144774]
[1756166424131,5.61687049,110330.0,110320.0,0.00044774]
[1756166424356,5.61787049,110330.0,110320.0,0.00144774]
[1756166427864,5.63205671,110330.0,110320.0,0.00144774]
[1756166428067,0.19050229,110280.0,110270.0,0.14269275]
[1756166428288,0.20743629,110280.0,110270.0,0.07502275]
[1756166428489,0.20743629,110280.0,110270.0,0.07516618]
[1756166429543,0.23471729,110280.0,110270.0,0.07516618]
[1756166429746,0.2346822,110280.0,110270.0,0.26409579]
[1756166429947,0.02604466,110280.0,110270.0,0.26409579]
[1756166430188,0.52604466,110280.0,110270.0,0.27133579]
[1756166430380,5.52604466,110280.0,110270.0,0.27133579]
[1756166430563,0.2074012,110280.0,110270.0,0.08240618]
[1756166431291,0.2074012,110280.0,110270.0,0.26677917]
[1756166431701,0.02604466,110280.0,110270.0,0.26677917]
[1756166431849,0.02775197,110280.0,110270.0,0.26677917]
[1756166432059,0.20910851,110280.0,110270.0,0.26677917]
[1756166432282,0.2074012,110280.0,110270.0,0.26677917]
[1756166432569,0.23406197,110280.0,110270.0,0.26677917]
[1756166432772,0.23406197,110280.0,110270.0,0.35240642]
[1756166433365,0.23406197,110280.0,110270.0,0.17103343]
[1756166433593,0.22491622,110280.0,110270.0,0.01287343]
[1756166433787,0.22491622,110280.0,110270.0,0.17103343]
[1756166434804,0.22491622,110280.0,110270.0,0.01287343]
[1756166435137,0.22491622,110280.0,110270.0,0.17107343]
[1756166435347,0.22689622,110280.0,110270.0,0.01287343]
[1756166435561,0.22491622,110280.0,110270.0,0.01287343]
[1756166435761,0.23323148,110280.0,110270.0,0.01287343]
[1756166435967,0.2746839,110280.0,110270.0,0.01287343]
[1756166436382,0.4328439,110280.0,110270.0,0.00754343]
[1756166436618,5.4328439,110280.0,110270.0,0.00754343]
[1756166436830,5.47757392,110280.0,110270.0,0.00754343]
[1756166437280,5.48602122,110280.0,110270.0,0.00754343]
[1756166437724,5.48602122,110280.0,110270.0,0.00454343]
[1756166438137,5.48602122,110280.0,110270.0,0.00254343]
[1756166438361,5.48890122,110280.0,110270.0,0.00454343]
[1756166438596,5.48890122,110280.0,110270.0,0.00254343]
[1756166438814,5.48602122,110280.0,110270.0,0.00454343]
[1756166439044,5.42754989,110280.0,110270.0,0.00987343]
[1756166439319,5.44458774,110280.0,110270.0,0.00454343]
[1756166439569,5.44458774,110280.0,110270.0,0.00987343]
[1756166439809,5.44270894,110280.0,110270.0,0.00987343]
[1756166440053,5.2669802,110280.0,110270.0,0.00987343]
[1756166440298,5.26698061,110280.0,110270.0,0.00987343]
[1756166440539,0.26698061,110280.0,110270.0,0.00987343]
[1756166440742,0.2669824,110280.0,110270.0,0.00987343]
[1756166440895,0.23125074,110280.0,110270.0,0.19124642]
[1756166441071,0.23970444,110280.0,110270.0,0.19124642]
[1756166441497,0.23970444,110280.0,110270.0,0.34944642]
[1756166441722,0.23970444,110280.0,110270.0,0.16807343]
[1756166442318,0.23970444,110280.0,110270.0,0.34944642]
[1756166442698,0.23970444,110280.0,110270.0,0.19124642]
[1756166442977,0.23970444,110280.0,110270.0,0.16799343]
[1756166444274,0.23970444,110280.0,110270.0,0.16617603]
[1756166444683,0.25389424,110280.0,110270.0,0.16617603]
[1756166445655,0.59389424,110280.0,110270.0,0.16613603]
[1756166445858,0.67414557,110280.0,110270.0,0.16613603]
[1756166446068,0.59389424,110280.0,110270.0,0.16613603]
[1756166446704,0.59389424,110280.0,110270.0,0.16609603]
[1756166447128,0.6134274,110280.0,110270.0,0.16609603]
[1756166448418,0.59863704,110280.0,110270.0,0.16609603]
[1756166448646,0.61355617,110280.0,110270.0,0.16609603]
[1756166449052,0.70020437,110280.0,110270.0,0.00805603]
[1756166449257,0.70020437,110280.0,110270.0,0.00272603]
[1756166449680,5.70020437,110280.0,110270.0,0.00272603]
[1756166450194,5.70021985,110280.0,110270.0,0.00272603]
[1756166450395,5.72472657,110280.0,110270.0,0.00272603]
[1756166450859,5.72761657,110280.0,110270.0,0.00272603]
[1756166451420,5.93014659,110280.0,110270.0,0.00272603]
[1756166451764,5.93014998,110280.0,110270.0,0.00272603]
[1756166452846,5.99019018,110280.0,110270.0,0.00272603]
[1756166453079,5.95149366,110280.0,110270.0,0.00272603]
[1756166453662,0.52137299,110270.0,110260.0,0.0004]
[1756166453867,5.59719459,110270.0,110260.0,0.00044779]
[1756166454068,0.18138944,110260.0,110250.0,0.06879009]
[1756166454268,1.02140589,110250.0,110240.0,0.12796]
[1756166454532,0.55324066,110250.0,110240.0,0.13052845]
[1756166455058,0.55324066,110250.0,110240.0,0.13376845]
[1756166455550,0.55324066,110250.0,110240.0,0.13676845]
[1756166456109,0.62670367,110250.0,110240.0,0.00387845]
[1756166456329,5.59675989,110250.0,110240.0,0.00387845]
[1756166456537,5.56939531,110250.0,110240.0,0.00387845]
[1756166456938,5.56939531,110250.0,110240.0,0.00687845]
[1756166457174,5.58780433,110250.0,110240.0,0.00387845]
[1756166457397,5.60736772,110250.0,110240.0,0.00287845]
[1756166457595,5.60736772,110250.0,110240.0,0.00487845]
[1756166457596,5.69423737,110250.0,110240.0,0.00487845]
[1756166457717,5.72152737,110250.0,110240.0,0.00287845]
[1756166457910,5.85175737,110250.0,110240.0,0.00087845]
[1756166458168,5.85175714,110250.0,110240.0,0.00187845]
[1756166458402,5.87912172,110250.0,110240.0,0.00287845]
[1756166458600,5.85175714,110250.0,110240.0,0.00287845]
[1756166458798,5.87904814,110250.0,110240.0,0.00287845]
[1756166459019,5.72152814,110250.0,110240.0,0.00287845]
[1756166459193,5.87920814,110250.0,110240.0,0.00287845]
[1756166459417,5.90657272,110250.0,110240.0,0.00287845]
[1756166459625,5.87920814,110250.0,110240.0,0.00187845]
[1756166459836,5.87920814,110250.0,110240.0,0.00087845]
[1756166460037,5.88020814,110250.0,110240.0,0.00087845]
[1756166460240,5.72252814,110250.0,110240.0,0.00087845]
[1756166460596,5.88040814,110250.0,110240.0,0.00087845]
[1756166461442,0.53887137,110240.0,110230.0,1e-08]
[1756166461647,5.83065581,110240.0,110230.0,4.779e-05]
[1756166461865,5.67281581,110240.0,110230.0,4.779e-05]
[1756166462094,5.83061581,110240.0,110230.0,4.779e-05]
[1756166462298,5.93061581,110240.0,110230.0,4.779e-05]
[1756166462896,5.93061581,110240.0,110230.0,1e-08]
[1756166463116,5.95798039,110240.0,110230.0,1e-08]
[1756166463313,5.80018039,110240.0,110230.0,1e-08]
[1756166463522,5.95806039,110240.0,110230.0,1e-08]
[1756166464149,0.5214882,110200.0,110190.0,0.07290074]
[1756166464361,0.52150467,110190.0,110180.0,0.07293275]
[1756166464565,5.54039475,110190.0,110180.0,0.00048666]
[1756166464803,5.56775933,110190.0,110180.0,0.00048666]
[1756166465010,5.857262,110190.0,110180.0,0.00048666]
[1756166465229,5.860152,110190.0,110180.0,0.00048666]
[1756166465460,5.88370079,110190.0,110180.0,0.00048666]
[1756166465726,5.95633621,110190.0,110180.0,1e-08]
[1756166465958,0.52152114,110180.0,110170.0,0.00048]
[1756166466172,5.80624144,110180.0,110170.0,0.0005278]
[1756166466404,5.64836144,110180.0,110170.0,0.0005278]
[1756166466607,0.52153762,110170.0,110160.0,0.0004]
[1756166466807,5.53845372,110170.0,110160.0,0.00379356]
[1756166467031,0.34,110170.0,110160.0,0.18209766]
[1756166467235,0.05085279,110190.0,110180.0,0.18152114]
[1756166467535,0.70676229,110190.0,110180.0,0.07353275]
[1756166467785,0.70676229,110190.0,110180.0,0.07578275]
[1756166467786,5.54505498,110190.0,110180.0,0.07578275]
[1756166467970,5.54505498,110190.0,110180.0,0.41542389]
[1756166467971,0.02354879,110190.0,110180.0,0.41542389]
[1756166468125,0.52354879,110190.0,110180.0,0.41542389]
[1756166468349,0.5,110190.0,110180.0,0.41542389]
[1756166468552,5.86337572,110190.0,110180.0,0.41542389]
[1756166468754,0.02337572,110190.0,110180.0,0.47511921]
[1756166469018,0.68147247,110210.0,110190.0,0.18150467]
[1756166469229,0.5214882,110200.0,110190.0,0.228]
[1756166469469,0.1814882,110200.0,110190.0,0.23]
[1756166469693,0.34,110200.0,110190.0,0.41150467]
[1756166469921,0.19567165,110210.0,110190.0,0.41475467]
[1756166470146,5.68319551,110200.0,110190.0,0.07505]
[1756166470363,0.5214882,110200.0,110190.0,0.00525]
[1756166470830,0.52150467,110190.0,110180.0,0.004]
[1756166471048,0.52150467,110190.0,110170.0,0.0698]
[1756166471049,0.18152114,110180.0,110170.0,0.0698]
[1756166471265,0.19851124,110180.0,110170.0,0.0718]
[1756166471490,0.19841124,110180.0,110170.0,0.07505]
[1756166471754,5.21907281,110180.0,110170.0,0.0698]
[1756166471970,5.21894281,110180.0,110170.0,0.07505]
[1756166472196,0.03109244,110180.0,110170.0,0.25885684]
[1756166472421,0.0168901,110180.0,110170.0,0.32376813]
[1756166472864,0.02292254,110200.0,110190.0,0.18150467]
[1756166473098,0.89455991,110200.0,110190.0,0.34519467]
[1756166473448,0.01687327,110200.0,110190.0,0.35019467]
[1756166473641,0.01687327,110200.0,110190.0,0.34519467]
[1756166473862,0.01687327,110200.0,110190.0,0.39786625]
[1756166474077,0.01687327,110200.0,110190.0,0.18675467]
[1756166474288,0.20006878,110200.0,110190.0,0.00525]
[1756166474512,0.21312448,110200.0,110190.0,0.16373]
[1756166474728,0.21312448,110200.0,110190.0,0.17173]
[1756166474938,0.21312448,110200.0,110190.0,0.16673]
[1756166475108,5.29089864,110200.0,110190.0,0.003]
[1756166475554,5.29089864,110200.0,110190.0,0.009]
[1756166475775,5.64834091,110200.0,110190.0,0.009]
[1756166476023,5.65123091,110200.0,110190.0,0.009]
[1756166476247,5.8238727,110200.0,110190.0,0.009]
[1756166476459,5.84330224,110200.0,110190.0,0.006]
[1756166476670,5.84330224,110200.0,110190.0,0.008]
[1756166476880,5.84330224,110200.0,110190.0,0.002]
[1756166477093,0.18152114,110180.0,110170.0,0.0698]
[1756166477378,0.52153762,110170.0,110160.0,0.16231356]
[1756166477589,0.53840671,110170.0,110160.0,0.16431356]
[1756166477821,0.55261002,110170.0,110160.0,0.16431356]
[1756166478050,5.55893395,110170.0,110160.0,0.00254356]
[1756166478276,5.55893395,110170.0,110160.0,0.00579356]
[1756166478751,0.37739633,110170.0,110160.0,0.00579356]
[1756166478980,0.3710724,110170.0,110160.0,0.18961708]
[1756166479234,0.55261002,110170.0,110160.0,0.00579356]
[1756166479660,0.63234676,110170.0,110160.0,0.00579356]
[1756166479869,0.55893364,110170.0,110160.0,0.00579356]
[1756166480074,0.55893364,110170.0,110160.0,0.00806298]
[1756166480500,5.55893364,110170.0,110160.0,0.00354356]
[1756166480682,5.64776329,110170.0,110160.0,0.00654356]
[1756166480842,5.64776329,110170.0,110160.0,0.16514356]
[1756166481074,5.64776329,110170.0,110160.0,0.35194766]
[1756166481075,5.55893364,110170.0,110160.0,0.35194766]
[1756166481282,0.03739602,110170.0,110160.0,0.34894766]
[1756166481766,0.01420331,110170.0,110160.0,0.35094766]
[1756166482459,0.01420331,110170.0,110160.0,0.19234766]
[1756166482676,0.71894376,110170.0,110160.0,0.16939356]
[1756166482886,5.20474045,110170.0,110160.0,0.16939356]
[1756166483096,5.20474045,110170.0,110160.0,0.35094766]
[1756166483097,0.02320283,110170.0,110160.0,0.35094766]
[1756166483306,0.20474045,110170.0,110160.0,0.35094766]
[1756166483679,0.20474045,110170.0,110160.0,0.16939356]
[1756166483877,0.20474045,110170.0,110160.0,0.16439356]
[1756166484082,0.20474045,110170.0,110160.0,0.16763356]
[1756166484268,0.21317978,110170.0,110160.0,0.17063356]
[1756166484470,0.54670045,110170.0,110160.0,0.00354356]
[1756166484694,5.55513944,110170.0,110160.0,0.00354356]
[1756166484900,5.62724206,110170.0,110160.0,0.00354356]
[1756166485119,0.3716443,110170.0,110160.0,0.19304441]
[1756166485323,0.36320582,110170.0,110160.0,0.19134766]
[1756166485528,0.36321398,110170.0,110160.0,0.19134766]
[1756166485734,0.36321398,110170.0,110160.0,0.18734766]
[1756166486166,0.59922541,110170.0,110160.0,0.00054356]
[1756166486367,5.60965031,110170.0,110160.0,0.00054356]
[1756166486571,5.61253031,110170.0,110160.0,0.00354356]
[1756166486783,5.61253031,110170.0,110160.0,0.00054356]
[1756166487124,5.61253031,110170.0,110160.0,0.00754356]
[1756166487466,5.61253031,110170.0,110160.0,0.00254356]
[1756166487666,5.27253031,110170.0,110160.0,0.00254356]
[1756166488094,5.27253031,110170.0,110160.0,0.00154356]
[1756166488259,5.2151765,110170.0,110160.0,0.00254356]
[1756166488509,5.2151765,110170.0,110160.0,0.00469356]
[1756166488714,5.2151765,110170.0,110160.0,0.00154356]
[1756166488915,5.2151765,110170.0,110160.0,0.00254356]
[1756166489113,5.2180565,110170.0,110160.0,0.00254356]
[1756166489337,5.32237517,110170.0,110160.0,0.00254356]
[1756166489715,5.66237517,110170.0,110160.0,0.00154356]
[1756166489917,5.66237517,110170.0,110160.0,0.00254356]
[1756166492386,5.57262552,110170.0,110160.0,0.00254356]
[1756166492596,5.73158552,110170.0,110160.0,0.00254356]
[1756166492794,5.73447552,110170.0,110160.0,0.00254356]
[1756166493371,5.76177492,110170.0,110160.0,1e-08]
[1756166493572,5.75394794,110170.0,110160.0,1e-08]
[1756166493770,5.84081759,110170.0,110160.0,1e-08]
[1756166493975,5.86813259,110170.0,110160.0,1e-08]
[1756166494457,5.86817491,110170.0,110160.0,1e-08]
[1756166494661,0.5215541,110160.0,110150.0,0.0002]
[1756166494867,5.5581253,110160.0,110150.0,0.00024775]
[1756166495070,5.63582094,110160.0,110150.0,0.00024775]
[1756166495187,0.52160355,110130.0,110120.0,0.30145275]
[1756166495394,0.5448511,110130.0,110120.0,0.3040817]
[1756166495597,0.5468311,110130.0,110120.0,0.3040817]
[1756166495841,0.5448511,110130.0,110120.0,0.1452017]
[1756166496061,0.5448511,110130.0,110120.0,0.1483317]
[1756166496282,0.5468311,110130.0,110120.0,0.0784917]
[1756166496471,0.5468311,110130.0,110120.0,0.0753617]
[1756166496874,0.55329637,110130.0,110120.0,0.0784917]
[1756166497104,0.56750528,110130.0,110120.0,0.0814917]
[1756166497244,0.56750528,110130.0,110120.0,0.0784917]
[1756166497650,0.56750528,110130.0,110120.0,0.0804917]
[1756166497859,0.56750528,110130.0,110120.0,0.0794917]
[1756166498446,0.56750528,110130.0,110120.0,0.0804917]
[1756166498923,0.56750528,110130.0,110120.0,0.00795895]
[1756166499347,0.56948528,110130.0,110120.0,0.00267895]
[1756166499551,0.56948528,110130.0,110120.0,0.00482895]
[1756166500003,0.56948528,110130.0,110120.0,0.00267895]
[1756166500217,0.66206937,110130.0,110120.0,0.00482895]
[1756166500430,0.58696072,110130.0,110120.0,0.00795895]
[1756166500670,0.56750528,110130.0,110120.0,0.00795895]
[1756166500887,0.58890173,110130.0,110120.0,0.00267895]
[1756166501310,0.56747712,110130.0,110120.0,0.0102292]
[1756166501539,0.56747712,110130.0,110120.0,0.00795895]
[1756166501748,0.64435495,110130.0,110120.0,0.00282895]
[1756166501978,0.64435495,110130.0,110120.0,0.00595895]
[1756166502190,0.18162005,110120.0,110110.0,0.26737814]
[1756166502438,0.2048408,110120.0,110110.0,0.24438168]
[1756166502684,0.18794751,110120.0,110110.0,0.24653168]
[1756166502920,0.20482076,110120.0,110110.0,0.24653168]
[1756166503126,0.20482076,110120.0,110110.0,0.08789168]
[1756166503335,0.20482076,110120.0,110110.0,0.42812822]
[1756166503602,0.22796984,110120.0,110110.0,0.43112822]
[1756166503812,5.22376238,110120.0,110110.0,0.08874168]
[1756166504048,5.22797188,110120.0,110110.0,0.09389168]
[1756166504258,0.22797188,110120.0,110110.0,0.09702168]
[1756166504678,0.22797188,110120.0,110110.0,0.09102168]
[1756166505116,0.22797188,110120.0,110110.0,0.09302168]
[1756166505321,0.22797188,110120.0,110110.0,0.09102168]
[1756166505530,0.30297707,110120.0,110110.0,0.09102168]
[1756166505726,0.22797188,110120.0,110110.0,0.09102168]
[1756166505932,0.22797188,110120.0,110110.0,0.09202168]
[1756166506364,0.04635183,110120.0,110110.0,0.27762697]
[1756166506577,0.04635183,110120.0,110110.0,0.27265822]
[1756166506789,0.02320275,110120.0,110110.0,0.35118649]
[1756166506995,0.02320275,110120.0,110110.0,0.43433822]
[1756166507196,0.02320275,110120.0,110110.0,0.43437822]
[1756166507421,0.02320275,110120.0,110110.0,0.43137822]
[1756166507620,0.02320275,110120.0,110110.0,0.43337822]
[1756166507920,0.02320275,110120.0,110110.0,0.43737822]
[1756166508151,0.0374112,110120.0,110110.0,0.50859641]
[1756166508693,0.05822181,110120.0,110110.0,0.50859641]
[1756166509587,0.05822181,110120.0,110110.0,0.50659641]
[1756166509945,0.05822181,110120.0,110110.0,0.50959641]
[1756166510259,0.05823828,110120.0,110110.0,0.50939641]
[1756166512495,0.05823828,110120.0,110110.0,0.27965822]
[1756166512695,0.04402983,110120.0,110110.0,0.43817822]
[1756166513305,0.02081061,110120.0,110110.0,0.43817822]
[1756166513530,0.04405342,110120.0,110110.0,0.43817822]
[1756166513734,0.02324281,110120.0,110110.0,0.43817822]
[1756166514340,0.04376629,110120.0,110110.0,0.43817822]
[1756166514481,0.04376629,110120.0,110110.0,0.27965822]
[1756166514656,0.04376629,110120.0,110110.0,0.43813822]
[1756166515717,0.22538634,110120.0,110110.0,0.43504822]
[1756166515960,0.22751634,110120.0,110110.0,0.27652822]
[1756166516161,0.22751634,110120.0,110110.0,0.43496822]
[1756166516332,0.24172552,110120.0,110110.0,0.43496822]
[1756166516676,0.24172552,110120.0,110110.0,0.43492822]
[1756166516884,0.06010547,110120.0,110110.0,0.43492822]
[1756166517084,0.24172552,110120.0,110110.0,0.27652822]
[1756166517294,0.24172552,110120.0,110110.0,0.43269822]
[1756166517516,0.6275601,110120.0,110110.0,0.09274168]
[1756166517715,0.6275601,110120.0,110110.0,0.25106168]
[1756166517917,0.6275601,110120.0,110110.0,0.09274168]
[1756166518120,0.6275601,110120.0,110110.0,0.25102168]
[1756166519412,0.6275601,110120.0,110110.0,0.24802168]
[1756166519617,0.6275601,110120.0,110110.0,0.24602168]
[1756166519820,0.6275601,110120.0,110110.0,0.24802168]
[1756166520432,0.39797547,110120.0,110110.0,0.27643822]
[1756166520634,0.39797547,110120.0,110110.0,0.43459822]
[1756166520834,0.39793007,110120.0,110110.0,0.43459822]
[1756166521127,0.39793007,110120.0,110110.0,0.27643822]
[1756166521330,0.39793007,110120.0,110110.0,0.43459822]
[1756166521535,0.57955012,110120.0,110110.0,0.27643822]
[1756166521759,0.57534117,110120.0,110110.0,0.24790168]
[1756166521906,0.38108797,110120.0,110110.0,0.43459822]
[1756166522322,0.38109005,110120.0,110110.0,0.43459822]
[1756166522518,0.5648401,110120.0,110110.0,0.43157822]
[1756166522751,0.55063092,110120.0,110110.0,0.42953822]
[1756166523199,0.36688087,110120.0,110110.0,0.43157822]
[1756166523320,0.36688087,110120.0,110110.0,0.50300307]
[1756166523522,0.36688087,110120.0,110110.0,0.27643822]
[1756166523728,0.36688087,110120.0,110110.0,0.43451822]
[1756166523966,0.55063092,110120.0,110110.0,0.08974168]
[1756166524161,0.55377092,110120.0,110110.0,0.08974168]
[1756166524364,5.55377092,110120.0,110110.0,0.24782168]
[1756166524605,5.64064057,110120.0,110110.0,0.08974168]
[1756166524806,5.64064057,110120.0,110110.0,0.24782168]
[1756166524959,5.64912558,110120.0,110110.0,0.08974168]
[1756166525166,5.64912558,110120.0,110110.0,0.24782168]
[1756166525556,5.64912558,110120.0,110110.0,0.24582168]
[1756166525879,5.64912558,110120.0,110110.0,0.24482168]
[1756166526067,5.64912558,110120.0,110110.0,0.24582168]
[1756166526263,5.64912558,110120.0,110110.0,0.08774168]
[1756166526495,5.66333646,110120.0,110110.0,0.24574168]
[1756166527110,5.66333646,110120.0,110110.0,0.24570168]
[1756166527705,5.57119681,110120.0,110110.0,0.43239822]
[1756166528048,0.56484544,110120.0,110110.0,0.25076168]
[1756166528254,0.38109539,110120.0,110110.0,0.43239822]
[1756166528591,0.56271544,110120.0,110110.0,0.25076168]
[1756166528919,0.63932505,110120.0,110110.0,0.24570168]
[1756166529139,0.64780933,110120.0,110110.0,0.24774168]
[1756166529556,0.57119972,110120.0,110110.0,0.42937822]
[1756166529918,0.57119972,110120.0,110110.0,0.43239822]
[1756166530263,0.56271544,110120.0,110110.0,0.43239822]
[1756166530465,0.38109539,110120.0,110110.0,0.43239822]
[1756166530680,0.55635441,110120.0,110110.0,0.25076168]
[1756166530888,0.54850739,110120.0,110110.0,0.25076168]
[1756166531157,0.36052348,110120.0,110110.0,0.43239822]
[1756166531498,0.36052348,110120.0,110110.0,0.43139822]
[1756166531728,0.02052348,110120.0,110110.0,0.43139822]
[1756166531951,0.34047648,110130.0,110120.0,0.18162005]
[1756166532183,0.01532756,110130.0,110120.0,0.18668005]
[1756166532588,0.00047648,110130.0,110120.0,0.26981788]
[1756166533939,0.00047648,110130.0,110120.0,0.34848005]
[1756166534622,0.00047648,110130.0,110120.0,0.19268005]
[1756166534852,0.00047648,110130.0,110120.0,0.35052005]
[1756166535296,0.00047648,110130.0,110120.0,0.34852005]
[1756166535755,0.00047648,110130.0,110120.0,0.35252005]
[1756166535966,0.0146835,110130.0,110120.0,0.35252005]
[1756166536170,0.0146835,110130.0,110120.0,0.43234588]
[1756166536383,0.0146835,110130.0,110120.0,0.27650588]
[1756166536615,0.0146835,110130.0,110120.0,0.35044005]
[1756166536828,0.0146835,110130.0,110120.0,0.34644005]
[1756166536974,0.0146835,110130.0,110120.0,0.34844005]
[1756166537179,0.0146835,110130.0,110120.0,0.18868005]
[1756166537391,0.0146835,110130.0,110120.0,0.34648005]
[1756166537591,0.0146835,110130.0,110120.0,0.35048005]
[1756166537792,0.0146835,110130.0,110120.0,0.43370188]
[1756166538193,0.0146835,110130.0,110120.0,0.43170188]
[1756166538392,0.0146835,110130.0,110120.0,0.42770188]
[1756166538565,0.0146835,110130.0,110120.0,0.43370188]
[1756166538961,0.0146835,110130.0,110120.0,0.19268005]
[1756166539203,0.0146835,110130.0,110120.0,0.34744005]
[1756166539560,0.0146835,110130.0,110120.0,0.35044005]
[1756166539970,0.0146835,110130.0,110120.0,0.35036005]
[1756166540223,0.0146835,110130.0,110120.0,0.35040005]
[1756166540436,0.0168135,110130.0,110120.0,0.18966005]
[1756166540659,0.19628705,110130.0,110120.0,0.35040005]
[1756166540871,0.19841705,110130.0,110120.0,0.34534005]
[1756166541310,0.27590733,110130.0,110120.0,0.006]
[1756166541514,0.27590733,110130.0,110120.0,0.16432]
[1756166541706,0.27866443,110130.0,110120.0,0.16432]
[1756166541932,0.0688225,110130.0,110120.0,0.16432]
[1756166542169,0.25426336,110130.0,110120.0,0.16432]
[1756166542369,0.25255605,110130.0,110120.0,0.16432]
[1756166542773,0.25255605,110130.0,110120.0,0.16132]
[1756166543099,0.20383767,110130.0,110120.0,0.16232]
[1756166543306,0.2186794,110130.0,110120.0,0.16232]
[1756166543513,0.2186794,110130.0,110120.0,0.15932]
[1756166543711,0.21867651,110130.0,110120.0,0.15932]
[1756166544516,0.21867651,110130.0,110120.0,0.15832]
[1756166544731,0.21867651,110130.0,110120.0,0.15932]
[1756166544939,0.29473874,110130.0,110120.0,0.15932]
[1756166545583,0.215535,110130.0,110120.0,0.16366025]
[1756166545812,0.19856478,110130.0,110120.0,0.3484503]
[1756166546019,0.20055478,110130.0,110120.0,0.34618005]
[1756166546223,0.20055478,110130.0,110120.0,0.34301005]
[1756166546424,0.20055478,110130.0,110120.0,0.16139]
[1756166546717,0.20055478,110130.0,110120.0,0.15932]
[1756166547121,0.20055478,110130.0,110120.0,0.16139]
[1756166548084,0.21476414,110130.0,110120.0,0.16139]
[1756166548286,0.03316059,110130.0,110120.0,0.34618005]
[1756166548493,0.21277414,110130.0,110120.0,0.34618005]
[1756166548894,5.74808775,110130.0,110120.0,0.001]
[1756166549214,5.77538715,110130.0,110120.0,0.001]
[1756166549600,5.74816775,110130.0,110120.0,0.001]
[1756166549803,0.53906907,110120.0,110110.0,0.08574168]
[1756166550009,5.55538627,110120.0,110110.0,0.08574168]
[1756166550160,5.55538633,110120.0,110110.0,0.08574168]
[1756166550360,5.55339633,110120.0,110110.0,0.08781168]
[1756166550565,5.53856737,110120.0,110110.0,0.09098168]
[1756166550778,5.54055737,110120.0,110110.0,0.08574168]
[1756166551185,5.54055737,110120.0,110110.0,0.24390168]
[1756166551394,5.54055737,110120.0,110110.0,0.24597168]
[1756166551589,5.54055737,110120.0,110110.0,0.24697168]
[1756166551993,0.35694732,110120.0,110110.0,0.43177822]
[1756166552278,0.52162005,110120.0,110110.0,0.31998168]
[1756166553355,0.52162005,110120.0,110110.0,0.16182168]
[1756166553356,0.52361005,110120.0,110110.0,0.16182168]
[1756166553593,0.59555235,110120.0,110110.0,0.31681168]
[1756166553767,0.52162005,110120.0,110110.0,0.31998168]
[1756166554530,0.52361005,110120.0,110110.0,0.31998168]
[1756166554730,0.52162005,110120.0,110110.0,0.31998168]
[1756166555140,0.52361005,110120.0,110110.0,0.31998168]
[1756166555336,5.64145064,110120.0,110110.0,0.08674168]
[1756166555654,5.6737212,110120.0,110110.0,0.08674168]
[1756166556035,5.6464218,110120.0,110110.0,0.08674168]
[1756166557132,5.59011217,110120.0,110110.0,0.08674168]
[1756166557689,5.5837603,110120.0,110110.0,0.08674168]
[1756166558186,5.59011097,110120.0,110110.0,0.08674168]
[1756166558363,5.59011097,110120.0,110110.0,0.08574168]
[1756166558576,5.59111097,110120.0,110110.0,0.08574168]
[1756166558776,5.59011097,110120.0,110110.0,0.08574168]
[1756166559139,5.59111097,110120.0,110110.0,0.08574168]
[1756166559349,5.59109875,110120.0,110110.0,0.08574168]
[1756166559535,5.58474852,110120.0,110110.0,0.08574168]
[1756166559945,5.59109774,110120.0,110110.0,0.08574168]
[1756166560201,5.67796739,110120.0,110110.0,0.08574168]
[1756166560362,5.6779667,110120.0,110110.0,0.08574168]